Workbook

Sheet NLP2
A1: c>> | B1: 2 | C1: 5 | D1: 1 | E1: 3 | F1: 4
B2: h1 | C2: h2 | D2: h3 | E2: h4 | F2: h5
B3: 0.1064720985 | C3: 0.1574111606 | D3: 0.02175381681 | E3: 0.07823267124 | F3: 0.1913254966 | G3: z | H3: Z | I3: Z^2
A4: h-sq>> | B4: =B3^2 -> 0.01133630775 | C4: =C3^2 -> 0.02477827349 | D4: 0.0004732285458 | E4: 0.006120350849 | F4: 0.03660544564 | G4: =SUM(B4:F4) -> 0.07931360627 | H4: =1/SQRT(G4) -> 3.550799512 | I4: =H4^2 -> 12.60817717 | J4: game value
A5: 12 | B5: =$B$1 -> 2 | C5: =$C$1 -> 5 | D5: 0 | E5: 0 | F5: 0 | G5: =SUMPRODUCT($B$3:$F$3,B5:F5) -> 1
A6: 135 | B6: =$B$1 -> 2 | C6: 0 | D6: =$D$1 -> 1 | E6: 0 | F6: =$F$1 -> 4 | G6: =SUMPRODUCT($B$3:$F$3,B6:F6) -> 1
A7: 45 | B7: 0 | C7: 0 | D7: 0 | E7: =$E$1 -> 3 | F7: =$F$1 -> 4 | G7: =SUMPRODUCT($B$3:$F$3,B7:F7) -> 1
A8: 432 | B8: 0 | C8: =$C$1 -> 5 | D8: =$D$1 -> 1 | E8: =$E$1 -> 3 | F8: 0 | G8: =SUMPRODUCT($B$3:$F$3,B8:F8) -> 1.043507634
A9: u>> | B9: =B3*$H$4 -> 0.3780610752 | C9: =C3*$H$4 -> 0.5589354723 | D9: 0.0772434421 | E9: 0.2777885308 | F9: 0.6793584798
A10: x>> | B10: =B9^2 -> 0.1429301766 | C10: =C9^2 -> 0.3124088622 | D10: 0.005966549348 | E10: 0.07716646786 | F10: 0.4615279441 | G10: =SUM(B10:F10) -> 1

Sheet NLP5
A1: 2 | B1: 5 | C1: 1 | D1: 3 | E1: 4 | F1: <<c
A2: =A1^2 -> 4 | B2: =B1^2 -> 25 | C2: 1 | D2: 9 | E2: 16
A3: 0.2781858245 | B3: 1.028269853 | C3: 0.028415662 | D3: 0.306759042 | E3: 1 | F3: <<w | H3: t | I3: S(w) | J3: p
A4: =A$3/$I4 -> 0.212931697 | B4: =B$3/$I4 -> 0.787068303 | F4: 12 | H4: 0.03148275052 | I4: =A3+B3 -> 1.306455678 | J4: =H4/$H$8 -> 0.3969399664
A5: =A$3/$I5 -> 0.2129079351 | C5: 0.02174776494 | E5: =E$3/$I5 -> 0.7653442999 | F5: 135 | H5: 0.02174776867 | I5: =A3+C3+E3 -> 1.306601487 | J5: =H5/$H$8 -> 0.2741996307
D6: 0.2347479773 | E6: 0.7652520227 | F6: 45 | H6: 0.02608311306 | I6: =D3+E3 -> 1.306759042 | J6: 0.3288604029
B7: 0.7541706392 | C7: 0.0208410836 | D7: 0.2249882772 | F7: 432 | H7: 0 | I7: =D3+C3+B3 -> 1.363444557 | J7: 0
A8: =A2*(H4*I4+H5*I5)-A3 -> 1.156263796e-07 | B8: =B2*(H4*I4+H7*I7)-B3 -> 6.009400306e-07 | C8: =C2*(H5*I5+H7*I7)-C3 -> 4.870959469e-09 | D8: =D2*(H6*I6+H7*I7)-D3 -> 5.253718544e-08 | E8: =E2*(H5*I5+H6*I6)-E3 -> 1.713139188e-07 | F8: <<constr | H8: =SUM(H4:H7) -> 0.07931363225 | I8: <sums> | J8: =SUM(J4:J7) -> 1
H9: =1/H8 -> 12.60817304 | I9: <<v
